{"text_format":"3","workbook":"xlsx","n_sheets":5,"sheets":["Ficha","Listas","Base","SUSTENTO INDICADOR  2020","Hoja5"],"not_rendered":{"charts":1,"images":3,"macros":1,"external_links":2,"defined_names":77},"read":"whole","date_system":"1900"}

{"sheet":"Ficha","index":0,"n_rows":20,"n_cols":8,"rows_kept":20}
[]
[]
[]
[]
[{"$nulls":3},"Información para la evaluación del desempeño"]
[]
[{"$nulls":3},"Municipio:"]
[{"$nulls":3},"Ixtlahuacán de los Membrillos"]
[]
[{"$nulls":3},"Registre por favor los programas que fueron capturados en la pestaña MIR",{"$nulls":3},"Registre por favor los programas que fueron capturados en la pestaña SinMatriz"]
[null,null,1,"Estado de Derecho y Seguridad",null,null,1]
[null,null,2,"Desarrollo Social",null,null,2]
[null,null,3,"Desarrollo Económico",null,null,3]
[null,null,4,"Gestión del Territorio",null,null,4]
[null,null,5,{"$nulls":3},5]
[null,null,6,{"$nulls":3},6]
[]
[{"$nulls":3},"Número de programas con MIR (programas que fueron capturados en la pestaña MIR)",null,4,null,"Número de programas sin matriz (programas que fueron capturados en la pestaña SinMatriz)"]
[]
[{"$nulls":3},"TOTAL",null,{"$f":"F18+J18","v":4}]

{"sheet":"Listas","index":1,"n_rows":174,"n_cols":33,"rows_kept":174,"hidden":true}
[]
[null,"Municipio","Denominación del Programa","Categoría programática","Unidad responsable","Fin","Función","Sub-función","Alineación con objetivos superiores del PND","Alineación con objetivos secundarios del PND","Alineación con objetivos superiores del PED","Alineación con objetivos secundarios del PED","Alineación con objetivos superior del PMD","Alineación con objetivos secundario del PMD","Nivel MIR","Resumen del nivel MIR","Resumen Narrativo (objetivos)","Cantidad de Gasto","Nombre","Definición","Dimensión","Tipo","Variables","Método de Cálculo","Frecuencia de Medición","Unidad de Medida","Valores Programados","Metas","Medios de Verificación","Supuestos"]
[null,"Acatic",null,"Subsidios sujetos a reglas de operación",null,"Gobierno","Legislación","1.1.1 Legislación","México_en_Paz","1.1. Promover y fortalecer la gobernabilidad democrática","O1_Incrementar_la_sostenibilidad_del_medio_ambiente_y_la_vulnerabilidad_del_cambio_climático","O1E1 Detener y revertir la degradación del medio ambiente",null,null,"Fin","F",{"$nulls":4},"Eficacia","Estratégico",null,null,"Mensual",{"$nulls":7},"Primer semestre"]
[null,"Acatlán de Juárez",null,"Otros subsidios",null,"Desarrollo_Social","Justicia","1.1.2 Fiscalización","México_Incluyente","1.2. Garantizar la seguridad nacional","O2_Impulsar_el_desarrollo_sostenible_de_las_regiones_del_estado","O1E2 Efectuar una ordenación y manejo sostenible de los bosques",null,null,"Propósito","P",{"$nulls":4},"Eficiencia","Gestión",null,null,"Bimestral",{"$nulls":7},"Segundo semestre"]
[null,"Ahualulco de Mercado",null,"Prestación de servicios públicos",null,"Desarrollo_Económico","Coordinación_Política_de_Gobierno","1.2.1 Impartición de Justicia","México_con_Educación_de_Calidad","1.3. Mejorar las condiciones de seguridad pública","O3_Promover_un_desarrollo_urbano_sostenible_equitativo_y_ordenado","O1E3 Frenar la pérdida de diversidad biológica",null,null,"Componentes","C1",{"$nulls":4},"Economía",{"$nulls":3},"Trimestral"]
[null,"Amacueca",null,"Provisión de bienes públicos",null,"Otros","Relaciones_Exteriores","1.2.2 Procuración de Justicia","México_Próspero","1.4. Garantizar un sistema de Justicia Penal eficaz, expedito, imparcial y transparente","O4_Garantizar_el_suministro_del_agua_para_población_y_actividades_productivas","O1E4 Incrementar el manejo sustentable de los residuos",null,null,"Actividades","C2",{"$nulls":4},"Calidad",{"$nulls":3},"Semestral"]
[null,"Amatitán",null,"Planeación, Seguimiento y Evaluación de políticas Públicas",null,null,"Asuntos_Financieros_y_Hacendarios","1.2.3 Reclusión y Readaptación Social","México_Con_Responsabilidad_Global","1.5. Garantizar el respeto y protección de los derechos humanos y la erradicación de la discriminación","O5_Mejorar_la_calidad_seguridad_y_sostenibilidad_de_la_movilidad_urbana","O1E5 Incrementar la producción y uso de fuentes de energía limpias",{"$nulls":3},"C3",{"$nulls":8},"Anual"]
[null,"Ameca",null,"Promoción y fomento",null,null,"Asuntos_de_Orden_Público_y_Seguridad_Interior","1.2.4 Derechos Humanos",null,"1.6. Salvaguardar a la población, a sus bienes y a su entorno ante un desastre de origen natural o humano","O6_Disminuir_los_factores_de_riesgo_y_mejorar_la_atención_ante_desastres","O1E6 Mitigar las emisiones de gases de efecto invernadero",{"$nulls":3},"C1A1",{"$nulls":8},"Bianual"]
[null,"San Juanito de Escobedo",null,"Regulación y Supervisión",null,null,"Otros_Servicios_Generales","1.3.1 Presidencia / Gubernatura",null,"2.1. Garantizar el ejercicio efectivo de los derechos sociales para toda la población","O7_Incrementar_la_formalidad_del_empleo_la_seguridad_social_y_estabilidad_laboral","O1E7 Ordenar y proteger de manera sostenible los ecosistemas lacustres y costeros",{"$nulls":3},"C1A2",{"$nulls":8},"Bienal"]
[null,"Arandas",null,"Específicos",null,null,"Protección_Ambiental","1.3.2 Política Interior",null,"2.2. Transitar hacia una sociedad equitativa e incluyente","O8_Mejorar_la_competitividad_y_el_crecimiento_inclusivo_y_sostenible_de_los_sectores_económicos","O1E8 Reducir la contaminación de acuíferos y aguas superficiales",{"$nulls":3},"C1A3",{"$nulls":8},"Periodo"]
[null,"El Arenal",null,"Proyectos de Inversión",null,null,"Vivienda_y_Servicios_a_la_Comunidad","1.3.3 Preservación y Cuidado del Patrimonio Público",null,"2.3. Asegurar el acceso a los servicios de salud","O9_Incrementar_de_forma_sostenible_la_productividad_y_rentabilidad_de_las_actividades_del_sector_primario","O1E9 Reducir la vulnerabilidad y aumentar la resiliencia de la sociedad, las cuencas hidrológicas y los ecosistemas naturales, urbanos y agropecuarios frente a los efectos adversos del cambio climático",{"$nulls":3},"C1A4"]
[null,"Atemajac de Brizuela",null,"Apoyo al Proceso Presupuestario y para Mejorar la Eficiencia Institucional",null,null,"Salud","1.3.4 Función Pública",null,"2.4. Ampliar el acceso a la seguridad social","O10_Incrementar_la_afluencia_y_la_derrama_económica_proveniente_del_turismo","O1E10 Revertir el deterioro de la calidad del aire",{"$nulls":3},"C2A1"]
[null,"Atengo",null,"Apoyo a la Función Pública y al Mejoramiento de la Gestión",null,null,"Recreación_Cultura_y_Otras_Manifestaciones_Sociales","1.3.5 Asuntos Jurídicos",null,"2.5. Proveer un entorno adecuado para el desarrollo de una vida digna","O11_Mejorar_la_conectividad_de_Jalisco_sus_regiones_y_municipios","O2E1 Actualizar los ordenamientos ecológicos territoriales y su aplicación efectiva",{"$nulls":3},"C2A2"]
[null,"Atenguillo",null,"Operaciones Ajenas",null,null,"Educación","1.3.6 Organización de Procesos Electorales",null,"3.1. Desarrollar el potencial humano de los mexicanos con educación de calidad","O12_Reducir_la_pobreza_y_la_desigualdad","O2E2 Desarrollar el potencial humano de las regiones con acceso a una educación de calidad",{"$nulls":3},"C2A3"]
[null,"Atotonilco el Alto",null,"Obligaciones de Cumplimiento de Resolución Jurisdiccional",null,null,"Protección_Social","1.3.7 Población",null,"3.2. Garantizar la inclusión y la equidad en el Sistema Educativo","O13_Proteger_los_derechos_y_ampliar_las_oportunidades_de_desarrollo_de_los_grupos_prioritarios","O2E3 Generar oportunidades de empleos dignos aprovechando de forma sustentable las potencialidades regionales",{"$nulls":3},"C2A4"]
[null,"Atoyac",null,"Desastres Naturales",null,null,"Otros_Asuntos_Sociales","1.3.8 Territorio",null,"3.3. Ampliar el acceso a la cultura como un medio para la formación integral\n de los ciudadanos","O14_Mejorar_la_salud_de_la_población","O2E4 Incrementar y mejorar la infraestructura productiva  y social",{"$nulls":3},"C3A1"]
[null,"Autlán de Navarro",null,"Pensiones y Jubilaciones.",null,null,"Asuntos_Económicos_Comerciales_y_Laborales_Generales","1.3.9 Otros Asuntos de Orden Público y Seguridad Interior",null,"3.4. Promover el deporte de manera incluyente para fomentar una cultura\n de salud","O15_Aumentar_el_acceso_de_la_población_a_una_vivienda_digna","O2E5 Mejorar la capacidad de gestión de los funcionarios y autoridades municipales",{"$nulls":3},"C3A2"]
[null,"Ayotlán",null,"Aportaciones a la Seguiridad Social",null,null,"Agropecuaria_Silvicultura_Pesca_y_Caza","1.4.1 Relaciones Exteriores",null,"3.5.Hacer del desarrollo científico, tecnológico y la innovación pilares para el progreso económico y social sostenible","O16_Incrementar_el_acceso_la_equidad_y_la_calidad_de_la_educación","O2E6 Reducir la pobreza y la desigualdad",{"$nulls":3},"C3A3"]
[null,"Ayutla",{"$nulls":4},"Combustibles_y_Energía","1.5.1 Asuntos Financieros",null,"4.1. Mantener la estabilidad macroeconómica del país","O17_Incrementar_el_desarrollo_tecnológico_la_investigación_científica_y_la_innovación","O3E1 Conservar los suelos, incrementar las áreas verdes y las reservas territoriales",{"$nulls":3},"C4A4"]
[null,"La Barca",{"$nulls":4},"Minería_Manufacturas_y_Construcción","1.5.2 Asuntos Hacendarios",null,"4.2. Democratizar el acceso al financiamiento de proyectos con potencial de crecimiento","O18_Garantizar_el_acceso_de_toda_la_población_a_la_cultura_y_las_diferentes_expresiones_artísticas","O3E2 Impulsar un desarrollo urbano orientado al transporte sustentable"]
[null,"Bolaños",{"$nulls":4},"Transporte","1.7.1 Policía",null,"4.3. Promover el empleo de calidad","O19_Aumentar_la_práctica_del_deporte_y_actividades_físicas_de_la_población","O3E3 Incrementar y mejorar los servicios y espacios públicos"]
[null,"Cabo Corrientes",{"$nulls":4},"Comunicaciones","1.7.2 Protección Civil",null,"4.4. Impulsar y orientar un crecimiento verde incluyente y facilitador que preserve nuestro atrimonio natural al mismo tiempo que genere riqueza, competitividad y empleo","O20_Reducir_la_incidencia_delictiva_y_mejorar_la_percepción_de_seguridad","O3E4 Mejorar la conectividad y articulación de las principales ciudades con una perspectiva regional e interestatal"]
[null,"Casimiro Castillo",{"$nulls":4},"Turismo","1.7.3 Otros Asuntos de Orden Público y Seguridad",null,"4.5. Democratizar el acceso a servicios de telecomunicaciones","O21_Mejorar_la_impartición_de_justicia_con_un_sistema_eficaz_expedito_imparcial_y_transparente","O3E5 Ordenar el crecimiento de las áreas urbanas y asegurar el cumplimiento de la normatividad inherente"]
[null,"Cihuatlán",{"$nulls":4},"Ciencia_Tecnología_e_Innovación","1.7.4 Sistema Nacional de Seguridad Pública",null,"4.6. Abastecer de energía al país con precios competitivos, calidad y eficiencia a lo largo de la cadena productiva","O22_Reducir_la_impunidad_mejorando_la_imparcialidad_transparencia_y_eficiencia_en_la_procuración_de_justicia","O3E6 Promover un crecimiento urbano equitativo mediante la oferta de suelo accesible y de calidad a los sectores de menores ingresos"]
[null,"Zapotlán el Grande",{"$nulls":4},"Otras_Industrias_y_Otros_Asuntos_Económicos","1.8.1 Servicios Registrales, Administrativos y Patrimoniales",null,"4.7. Garantizar reglas claras que incentiven el desarrollo de un mercado interno competitivo","O23_Garantizar_el_respeto_y_la_protección_de_los_derechos_humanos_y_eliminar_la_discriminación","O3E7 Reducir la contaminación del agua y aire, así como la visual y auditiva"]
[null,"Cocula",{"$nulls":4},"Transacciones_de_la_Deuda_Financiera_y_Costo_Financiero_Deuda","1.8.2 Servicios Estadísticos",null,"4.8. Desarrollar los sectores estratégicos del país","O24_Mejorar_la_estabilidad_y_funcionalidad_del_sistema_democrático","O3E8 Reducir la fragmentación territorial y política en las áreas metropolitanas mediante la aplicación de un modelo de gobernanza metropolitana"]
[null,"Colotlán",{"$nulls":4},"Transferencias_Participaciones_y_Aportaciones","1.8.3 Servicios de Comunicación y Medios",null,"4.9. Contar con una infraestructura de transporte que se refleje en menores costos para realizar la actividad económica","O25_Mejorar_la_efectividad_de_las_instituciones_públicas_y_gubernamentales","O4E1 Fortalecer el desarrollo y la capacidad técnica y financiera de los organismos operadores del agua"]
[null,"Concepción de Buenos Aires",{"$nulls":4},"Saneamiento_del_Sistema_Financiero","1.8.4 Acceso a la Información Pública Gubernamental",null,"4.10. Construir un sector agropecuario y pesquero productivo que garantice la seguridad alimentaria del país","O26_Mejorar_la_igualdad_entre_los_géneros_y_empoderar_a_las_mujeres","O4E2 Incrementar los niveles de tratamiento de aguas residuales y su reutilización"]
[null,"Cuautitlán de García Barragán",{"$nulls":4},"Adeudos_Anteriores","1.8.5 Otros",null,"4.11. Aprovechar el potencial turístico de México para generar una mayor derrama económica en el país","O27_Incrementar_la_capacidad_innovadora_en_los_sectores_social_privado_y_público","O4E3 Incrementar y diversificar las fuentes de abastecimiento y captación de agua"]
[null,"Cuautla",{"$nulls":5},"2.1.1 Ordenación de Desechos",null,"5.1. Ampliar y fortalecer la presencia de México en el mundo",null,"O4E4 Mejorar la potabilización de las aguas para el consumo humano"]
[null,"Cuquío",{"$nulls":5},"2.1.2 Administración del Agua",null,"5.2. Promover el valor de México en el mundo mediante la difusión económica, turística y cultural",null,"O4E5 Modernizar y ampliar la infraestructura hidroagrícola"]
[null,"Chapala",{"$nulls":5},"2.1.3 Ordenación de Aguas Residuales, Drenaje y Alcantarillado",null,"5.3. Reafirmar el compromiso del país con el libre comercio, la movilidad de capitales y la integración productiva",null,"O4E6 Ordenar el uso y aprovechamiento del agua en cuencas y acuíferos"]
[null,"Chimaltitán",{"$nulls":5},"2.1.4 Reducción de la Contaminación",null,"5.4. Velar por los intereses de los mexicanos en el extranjero y proteger los derechos de los extranjeros en el territorio nacional",null,"O4E7 Proteger y recuperar los bosques, humedales y ríos"]
[null,"Chiquilistlán",{"$nulls":5},"2.1.5 Protección de la Diversidad Biológica y del Paisaje",{"$nulls":3},"O4E8 Reducir el desperdicio del agua y racionalizar su uso"]
[null,"Degollado",{"$nulls":5},"2.1.6 Otros de Protección Ambiental",{"$nulls":3},"O5E1 Ampliar y articular la red de transporte público masivo incentivando la multimodalidad"]
[null,"Ejutla",{"$nulls":5},"2.2.1 Urbanización",{"$nulls":3},"O5E2 Incrementar el uso de medios alternativos de traslado, desincentivando el uso del automóvil"]
[null,"Encarnación de Díaz",{"$nulls":5},"2.2.2 Desarrollo Comunitario",{"$nulls":3},"O5E3 Mejorar la infraestructura y equipamiento para la movilidad motorizada y no motorizada"]
[null,"Etzatlán",{"$nulls":5},"2.2.3 Abastecimiento de Agua",{"$nulls":3},"O5E4 Mejorar la seguridad y la cultura vial"]
[null,"El Grullo",{"$nulls":5},"2.2.4 Alumbrado Público",{"$nulls":3},"O5E5 Modernizar los sistemas de transporte público en las ciudades"]
[null,"Guachinango",{"$nulls":5},"2.2.5 Vivienda",{"$nulls":3},"O6E1 Incrementar la capacitación y profesionalización del personal de protección civil"]
[null,"Guadalajara",{"$nulls":5},"2.2.6 Servicios Comunales",{"$nulls":3},"O6E2 Incrementar la cultura de protección civil en la sociedad, el gobierno y la empresa"]
[null,"Hostotipaquillo",{"$nulls":5},"2.2.7 Desarrollo Regional",{"$nulls":3},"O6E3 Mejorar los procedimientos para disminuir los riesgos y la atención de emergencias"]
[null,"Huejúcar",{"$nulls":5},"2.3.1 Prestación de Servicios de Salud a la Comunidad",{"$nulls":3},"O6E4 Mejorar los sistemas de información de los riesgos a los que está expuesta la población y su entorno"]
[null,"Huejuquilla el Alto",{"$nulls":5},"2.3.2 Prestación de Servicios de Salud a la Persona",{"$nulls":3},"O6E5 Mejorar y establecer sistemas de alerta temprana multirriesgos"]
[null,"La Huerta",{"$nulls":5},"2.3.3 Generación de Recursos para la Salud",{"$nulls":3},"O7E1 Aumentar la disponibilidad de capital humano mejor calificado adecuado a la demanda del mercado laboral"]
[null,"Ixtlahuacán de los Membrillos",{"$nulls":5},"2.3.4 Rectoría del Sistema de Salud",{"$nulls":3},"O7E2 Erradicar el trabajo infantil"]
[null,"Ixtlahuacán del Río",{"$nulls":5},"2.3.5 Protección Social en Salud",{"$nulls":3},"O7E3 Incrementar la certificación de competencias laborales y profesionales"]
[null,"Jalostotitlán",{"$nulls":5},"2.4.1 Deporte y Recreación",{"$nulls":3},"O7E4 Incrementar la cultura empresarial de la responsabilidad social"]
[null,"Jamay",{"$nulls":5},"2.4.2 Cultura",{"$nulls":3},"O7E5 Incrementar la productividad con beneficios compartidos, la empleabilidad y la capacitación en el trabajo"]
[null,"Jesús María",{"$nulls":5},"2.4.3 Radio, Televisión y Editoriales",{"$nulls":3},"O7E6 Mejorar la protección de los derechos del trabajador"]
[null,"Jilotlán de los Dolores",{"$nulls":5},"2.4.4 Asuntos Religiosos y Otras Manifestaciones Sociales",{"$nulls":3},"O7E7 Mejorar la remuneración y las condiciones laborales de la población ocupada"]
[null,"Jocotepec",{"$nulls":5},"2.5.1 Educación Básica",{"$nulls":3},"O7E8 Propiciar el equilibrio entre empleadores y trabajadores para preservar la paz laboral"]
[null,"Juanacatlán",{"$nulls":5},"2.5.2 Educación Media Superior",{"$nulls":3},"O8E1 Aumentar las exportaciones de las unidades productivas"]
[null,"Juchitlán",{"$nulls":5},"2.5.3 Educación Superior",{"$nulls":3},"O8E2 Aumentar los niveles de innovación tecnológica, empresarial y social"]
[null,"Lagos de Moreno",{"$nulls":5},"2.5.4 Posgrado",{"$nulls":3},"O8E3 Estimular el espíritu empresarial y el desarrollo de emprendedores"]
[null,"El Limón",{"$nulls":5},"2.5.5 Educación para Adultos",{"$nulls":3},"O8E4 Facilitar el acceso al financiamiento y la asistencia técnica, especialmente a la micro y pequeña empresa"]
[null,"Magdalena",{"$nulls":5},"2.5.6 Otros Servicios Educativos y Actividades Inherentes",{"$nulls":3},"O8E5 Incrementar el desarrollo y la integración de las cadenas productivas, de proveeduría y los clústeres"]
[null,"Santa María del Oro",{"$nulls":5},"2.6.1 Enfermedad e Incapacidad",{"$nulls":3},"O8E6 Incrementar la inversión extranjera directa"]
[null,"La Manzanilla de la Paz",{"$nulls":5},"2.6.2 Edad Avanzada",{"$nulls":3},"O8E7 Mejorar e incrementar la infraestructura productiva"]
[null,"Mascota",{"$nulls":5},"2.6.3 Familia e Hijos",{"$nulls":3},"O8E8 Mejorar la calidad y la productividad de las unidades económicas"]
[null,"Mazamitla",{"$nulls":5},"2.6.4 Desempleo",{"$nulls":3},"O8E9 Simplificar los trámites y agilizar los procesos de apertura de empresas"]
[null,"Mexticacán",{"$nulls":5},"2.6.5 Alimentación y Nutrición",{"$nulls":3},"O9E1 Ampliar y modernizar la infraestructura rural productiva"]
[null,"Mezquitic",{"$nulls":5},"2.6.6 Apoyo Social para la Vivienda",{"$nulls":3},"O9E2 Aumentar la comercialización de los productos del sector primario dentro y fuera del país"]
[null,"Mixtlán",{"$nulls":5},"2.6.7 Indígenas",{"$nulls":3},"O9E3 Aumentar la industrialización y el valor agregado a la producción del sector primario"]
[null,"Ocotlán",{"$nulls":5},"2.6.8 Otros Grupos Vulnerables",{"$nulls":3},"O9E4 Incrementar el financiamiento, la capacitación y asistencia técnica a los productores rurales"]
[null,"Ojuelos de Jalisco",{"$nulls":5},"2.6.9 Otros de Seguridad Social y Asistencia Social",{"$nulls":3},"O9E5 Incrementar la producción sustentable y comercialización de la madera y sus derivados"]
[null,"Pihuamo",{"$nulls":5},"2.7.1 Otros Asuntos Sociales",{"$nulls":3},"O9E6 Mejorar la sanidad e inocuidad de los productos agropecuarios"]
[null,"Poncitlán",{"$nulls":5},"3.1.1 Asuntos Económicos y Comerciales en General",{"$nulls":3},"O10E1 Aumentar la atracción y captación de inversión en el sector"]
[null,"Puerto Vallarta",{"$nulls":5},"3.1.2 Asuntos Laborales Generales",{"$nulls":3},"O10E2 Incrementar la promoción integral de destinos y rutas turísticas"]
[null,"Villa Purificación",{"$nulls":5},"3.2.1 Agropecuaria",{"$nulls":3},"O10E3 Innovar y diversificar la oferta turística por región y destino de forma sostenible"]
[null,"Quitupan",{"$nulls":5},"3.2.2 Silvicultura",{"$nulls":3},"O10E4 Mejorar el entorno, la infraestructura y equipamiento en centros turísticos"]
[null,"El Salto",{"$nulls":5},"3.2.3 Acuacultura, Pesca y Caza",{"$nulls":3},"O10E5 Mejorar las capacidades turísticas locales y promover el emprendurismo en el sector"]
[null,"San Cristóbal de la Barranca",{"$nulls":5},"3.2.4 Agroindustrial",{"$nulls":3},"O11E1 Ampliar y modernizar la red de ferrocarriles"]
[null,"San Diego de Alejandría",{"$nulls":5},"3.2.5 Hidroagrícola",{"$nulls":3},"O11E2 Incrementar la accesibilidad a las telecomunicaciones"]
[null,"San Juan de los Lagos",{"$nulls":5},"3.2.6 Apoyo Financiero a la Banca y Seguro Agropecuario",{"$nulls":3},"O11E3 Incrementar y modernizar la red de carreteras"]
[null,"San Julián",{"$nulls":5},"3.3.1 Carbón y Otros Combustibles Minerales Sólidos",{"$nulls":3},"O11E4 Modernizar y ampliar la infraestructura aérea y la marítima"]
[null,"San Marcos",{"$nulls":5},"3.3.2 Petróleo y Gas Natural (Hidrocarburos)",{"$nulls":3},"O11E5 Propiciar la ampliación de servicios logísticos estratégicos para el desarrollo social y económico"]
[null,"San Martín de Bolaños",{"$nulls":5},"3.3.3 Combustibles Nucleares",{"$nulls":3},"O12E1 Ampliar las capacidades productivas de la población en condiciones de vulnerabilidad"]
[null,"San Martín Hidalgo",{"$nulls":5},"3.3.4 Otros Combustibles",{"$nulls":3},"O12E2 Incrementar la disponibilidad y el acceso a una adecuada alimentación de la población en condiciones de pobreza"]
[null,"San Miguel el Alto",{"$nulls":5},"3.3.5 Electricidad",{"$nulls":3},"O12E3 Mejorar el pago de impuestos y servicios públicos acorde con el nivel de vida e ingresos de la población"]
[null,"Gómez Farías",{"$nulls":5},"3.3.6 Energía no Eléctrica",{"$nulls":3},"O12E4 Mejorar la calidad y espacios en las viviendas de la población en situación de pobreza"]
[null,"San Sebastián del Oeste",{"$nulls":5},"3.4.1 Extracción de Recursos Minerales excepto los Combustibles Minerales",{"$nulls":3},"O12E5 Promover la cohesión social desde los espacios de deliberación pública, fortaleciendo las organizaciones sociales y la participación comunitaria"]
[null,"Santa María de los Ángeles",{"$nulls":5},"3.4.2 Manufacturas",{"$nulls":3},"O12E6 Reducir el rezago educativo"]
[null,"Sayula",{"$nulls":5},"3.4.3 Construcción",{"$nulls":3},"O13E1 Ampliar las capacidades productivas de los grupos prioritarios"]
[null,"Tala",{"$nulls":5},"3.5.1 Transporte por Carretera",{"$nulls":3},"O13E2 Brindar atención y acompañamiento a la población migrante"]
[null,"Talpa de Allende",{"$nulls":5},"3.5.2 Transporte por Agua y Puertos",{"$nulls":3},"O13E3 Garantizar la accesibilidad y la inclusión de las personas con discapacidad; y reducir el riego de adquirirla"]
[null,"Tamazula de Gordiano",{"$nulls":5},"3.5.3 Transporte por Ferrocarril",{"$nulls":3},"O13E4 Garantizar los derechos de los adultos mayores, incrementar su autonomía y promover el envejecimiento activo"]
[null,"Tapalpa",{"$nulls":5},"3.5.4 Transporte Aéreo",{"$nulls":3},"O13E5 Garantizar y restituir los derechos de las niñas, niños y adolescentes"]
[null,"Tecalitlán",{"$nulls":5},"3.5.5 Transporte por Oleoductos y Gasoductos y Otros Sistemas de Transporte",{"$nulls":3},"O13E6 Incrementar el ingreso, permanencia y conclusión de la formación educativa de estudiantes indígenas"]
[null,"Tecolotlán",{"$nulls":5},"3.5.6 Otros Relacionados con Transporte",{"$nulls":3},"O13E7 Mejorar la dotación de servicios públicos en las localidades con población indígena"]
[null,"Techaluta de Montenegro",{"$nulls":5},"3.6.1 Comunicaciones",{"$nulls":3},"O13E8 Reducir la violencia intrafamiliar y comunitaria"]
[null,"Tenamaxtlán",{"$nulls":5},"3.7.1 Turismo",{"$nulls":3},"O13E9 Reducir los principales riesgos sociales y de salud a los que está expuesta la población joven (alcoholismo y drogadicción, embarazos adolescente, abandono escolar)"]
[null,"Teocaltiche",{"$nulls":5},"3.7.2 Hoteles y Restaurantes",{"$nulls":3},"O14E1 Impulsar la integración y universalidad de los servicios de salud"]
[null,"Teocuitatlán de Corona",{"$nulls":5},"3.8.1 Investigación Científica",{"$nulls":3},"O14E2 Incrementar el acceso efectivo a los servicios de salud, en especial la población en condiciones de vulnerabilidad y pobreza"]
[null,"Tepatitlán de Morelos",{"$nulls":5},"3.8.2 Desarrollo Tecnológico",{"$nulls":3},"O14E3 Mejorar la calidad en la prestación de los servicios de salud"]
[null,"Tequila",{"$nulls":5},"3.8.3 Servicios Científicos y Tecnológicos",{"$nulls":3},"O14E4 Reducir el sobrepeso y la obesidad de la población"]
[null,"Teuchitlán",{"$nulls":5},"3.8.4 Innovación",{"$nulls":3},"O14E5 Reducir y controlar los factores de riesgo para la salud con enfoque preventivo a la comunidad"]
[null,"Tizapán el Alto",{"$nulls":5},"3.9.1 Comercio, Distribución, Almacenamiento y Depósito",{"$nulls":3},"O15E1 Facilitar el acceso al financiamiento para adquirir una vivienda propia a la población más vulnerable"]
[null,"Tlajomulco de Zúñiga",{"$nulls":5},"3.9.2 Otras Industrias",{"$nulls":3},"O15E2 Garantizar la aplicación de los instrumentos de planeación urbana en la construcción de fraccionamientos y para evitar asentamiento irregulares"]
[null,"Tlaquepaque",{"$nulls":5},"3.9.3 Otros Asuntos Económicos",{"$nulls":3},"O15E3 Garantizar reservas territoriales suficientes para la construcción de viviendas"]
[null,"Tolimán",{"$nulls":5},"4.1.1 Deuda Pública Interna",{"$nulls":3},"O15E4 Incrementar la efectividad de los programas sociales dirigidos a la adquisición, autoconstrucción y mejora de la vivienda"]
[null,"Tomatlán",{"$nulls":5},"4.1.2 Deuda Pública Externa",{"$nulls":3},"O15E5 Mejorar el entorno y servicios en las viviendas en zonas urbanas y rurales marginadas"]
[null,"Tonalá",{"$nulls":5},"4.2.1 Transferencias entre Diferentes Niveles y Ordenes de Gobierno",{"$nulls":3},"O15E6 Mejorar los procesos de certificación de la propiedad de la vivienda en asentamientos irregulares"]
[null,"Tonaya",{"$nulls":5},"4.2.2 Participaciones entre Diferentes Niveles y Ordenes de Gobierno",{"$nulls":3},"O16E1 Ampliar la oferta, la calidad y el acceso para realizar estudios de posgrado y de educación continua"]
[null,"Tonila",{"$nulls":5},"4.2.3 Aportaciones entre Diferentes Niveles y Ordenes de Gobierno",{"$nulls":3},"O16E2 Ampliar las oportunidades educativas, en especial la población en condiciones de vulnerabilidad y pobreza"]
[null,"Totatiche",{"$nulls":5},"4.3.1 Saneamiento del Sistema Financiero",{"$nulls":3},"O16E3 Ampliar y mejorar la enseñanza de la ciencia y la tecnología en la educación básica"]
[null,"Tototlán",{"$nulls":5},"4.3.2 Apoyos IPAB",{"$nulls":3},"O16E4 Diversificar la oferta de programas de educación superior y sus modalidades"]
[null,"Tuxcacuesco",{"$nulls":5},"4.3.3 Banca de Desarrollo",{"$nulls":3},"O16E5 Incrementar en la educación superior la movilidad de estudiantes y académicos a nivel estatal, nacional e internacional"]
[null,"Tuxcueca",{"$nulls":5},"4.3.4 Apoyo a los programas de reestructura en unidades de inversión (UDIS)",{"$nulls":3},"O16E6 Incrementar espacios educativos comunes que permitan la conjunción de esfuerzos de instituciones para mejorar la calidad y consolidar el clúster de la educación superior en el estado"]
[null,"Tuxpan",{"$nulls":5},"4.4.1 Adeudos de Ejercicios Fiscales Anteriores",{"$nulls":3},"O16E7 Incrementar la cobertura de la educación media superior y superior"]
[null,"Unión de San Antonio",{"$nulls":9},"O16E8 Mejorar el aprendizaje de un segundo idioma por parte de los estudiantes en todos los niveles educativos, particularmente el básico"]
[null,"Unión de Tula",{"$nulls":9},"O16E9 Mejorar la capacitación y actualización de docente y directivos del sistema educativo"]
[null,"Valle de Guadalupe",{"$nulls":9},"O16E10 Reducir el rezago educativo"]
[null,"Valle de Juárez",{"$nulls":9},"O16E11 Reducir la violencia en los planteles educativos"]
[null,"San Gabriel",{"$nulls":9},"O17E1 Ampliar y mejorar los instrumentos de transferencia y difusión tecnológica"]
[null,"Villa Corona",{"$nulls":9},"O17E2 Aumentar las fuentes de financiamiento para actividades de ciencia y tecnología"]
[null,"Villa Guerrero",{"$nulls":9},"O17E3 Aumentar las instituciones y empresas que realizan actividades de investigación y desarrollo tecnológico"]
[null,"Villa Hidalgo",{"$nulls":9},"O17E4 Incrementar el desarrollo de proyectos científicos tecnológicos entre los sectores académicos y las empresas"]
[null,"Cañadas de Obregón",{"$nulls":9},"O17E5 Incrementar la I+D en las empresas que exportan productos de alta tecnología"]
[null,"Yahualica de González Gallo",{"$nulls":9},"O17E6 Incrementar la investigación y el desarrollo tecnológico en las instituciones educativas"]
[null,"Zacoalco de Torres",{"$nulls":9},"O17E7 Mejorar y ampliar la formación de recursos humanos calificados en el campo de la investigación y desarrollo"]
[null,"Zapopan",{"$nulls":9},"O18E1 Diversificar y ampliar las alternativas de recreación cultural en regiones y municipios"]
[null,"Zapotiltic",{"$nulls":9},"O18E2 Garantizar la disponibilidad, seguridad y conservación de los espacios y sitios culturales"]
[null,"Zapotitlán de Vadillo",{"$nulls":9},"O18E3 Incrementar la disponibilidad de recursos humanos en el ámbito artístico"]
[null,"Zapotlán del Rey",{"$nulls":9},"O18E4 Incrementar las capacidades creativas y de producción artística de la población"]
[null,"Zapotlanejo",{"$nulls":9},"O18E5 Mejorar las condiciones materiales, humanas e institucionales vinculadas a la cultura"]
[null,"San Ignacio Cerro Gordo",{"$nulls":9},"O19E1 Acrecentar la capacitación y formación de instructores y entrenadores en actividades físicas y deportivas"]
[{"$nulls":11},"O19E2 Incrementar la práctica de actividades físicas y deportivas en todos los niveles educativos, y la población en general"]
[{"$nulls":11},"O19E3 Incrementar y mejorar los espacios para la práctica de actividades físicas y deportivas"]
[{"$nulls":11},"O19E4 Mejorar y ampliar el sistema estatal del deporte de alto rendimiento"]
[{"$nulls":11},"O19E5 Promover la práctica del deporte competitivo en el ámbito local, regional y estatal"]
[{"$nulls":11},"O20E1 Fortalecer las capacidades y equipamiento de los cuerpos de seguridad pública"]
[{"$nulls":11},"O20E2 Garantizar la honestidad, confianza y el profesionalismo del personal que labora en las instituciones de seguridad pública y privada a través de un sistema adecuado de evaluación"]
[{"$nulls":11},"O20E3 Incrementar el acceso de la población a las actividades culturales, deportivas y recreativas"]
[{"$nulls":11},"O20E4 Incrementar el nivel de denuncia ciudadana y su correcta atención"]
[{"$nulls":11},"O20E5 Incrementar la participación ciudadana en la prevención del delito"]
[{"$nulls":11},"O20E6 Intensificar y mejorar la comunicación en materia de prevención del delito y combate a la inseguridad"]
[{"$nulls":11},"O21E1 Concluir y consolidar el nuevo sistema penal acusatorio"]
[{"$nulls":11},"O21E2 Disminuir la incidencia de los actos de corrupción"]
[{"$nulls":11},"O21E3 Facilitar el acceso de la justicia a nivel local y regional"]
[{"$nulls":11},"O21E4 Incrementar el uso de métodos alternativos de solución de conflictos"]
[{"$nulls":11},"O21E5 Mejorar el sistema penal con el propósito de reducir la sobrepoblación penitenciaria"]
[{"$nulls":11},"O21E6 Mejorar la capacitación y formación de los recursos humanos del poder judicial"]
[{"$nulls":11},"O21E7 Proporcionar asistencia y representación eficaz a las víctimas con perspectiva de derechos humanos"]
[{"$nulls":11},"O22E1 Aumentar la probabilidad de captura y condena por delitos cometidos"]
[{"$nulls":11},"O22E2 Disminuir la incidencia de los actos de corrupción"]
[{"$nulls":11},"O22E3 Investigar y perseguir el delito con mayor eficacia"]
[{"$nulls":11},"O22E4 Mejorar la calidad de los servicios que prestan los ministerios públicos"]
[{"$nulls":11},"O22E5 Mejorar la capacitación y formación de los recursos humanos para la procuración de justicia"]
[{"$nulls":11},"O22E6 Mejorar la percepción ciudadana sobre el quehacer del sistema de procuración de justicia"]
[{"$nulls":11},"O23E1 Disminuir la incidencia de las violaciones a los Derechos Humanos"]
[{"$nulls":11},"O23E2 Mejorar la atención a las víctimas de violaciones a los derechos humanos"]
[{"$nulls":11},"O23E3 Reducir la violencia y discriminación, particularmente aquella ejercida en contra de grupos en situación de vulnerabilidad"]
[{"$nulls":11},"O24E1 Contribuir al desarrollo democrático social y político"]
[{"$nulls":11},"O24E2 Incrementar la participación ciudadana en asuntos públicos y en organizaciones civiles y comunitarias"]
[{"$nulls":11},"O24E3 Mejorar la coordinación de los tres órdenes y niveles de gobierno"]
[{"$nulls":11},"O24E4 Prevenir y gestionar conflictos sociales a través del diálogo constructivo"]
[{"$nulls":11},"O25E1 Disminuir la incidencia de los actos de corrupción"]
[{"$nulls":11},"O25E2 Impulsar un gobierno abierto, promotor de la transparencia, la rendición de cuentas, la participación ciudadana y del uso de las tecnologías de información y comunicación"]
[{"$nulls":11},"O25E3 Incrementar la disponibilidad de recursos financieros y mejorar su uso y asignación"]
[{"$nulls":11},"O25E4 Mejorar la calidad y disponibilidad de información para la toma de decisiones de la sociedad y el gobierno"]
[{"$nulls":11},"O25E5 Mejorar la calidad y la prestación de servicios públicos"]
[{"$nulls":11},"O25E6 Mejorar la capacitación y profesionalización de los funcionarios y servidores públicos"]
[{"$nulls":11},"O25E7 Mejorar la planeación, programación, el seguimiento y la evaluación para una gestión pública eficiente orientada a resultados"]
[{"$nulls":11},"O26E1 Asegurar el acceso igualitario a la justicia"]
[{"$nulls":11},"O26E2 Garantizar el acceso universal a la salud reproductiva y sexual"]
[{"$nulls":11},"O26E3 Incrementar el acceso a la educación de niñas y mujeres"]
[{"$nulls":11},"O26E4 Incrementar la participación de las mujeres en cargos públicos y en puestos de elección popular"]
[{"$nulls":11},"O26E5 Incrementar las oportunidades laborales dignas para las mujeres, en particular las mujeres jefas de familia"]
[{"$nulls":11},"O26E6 Reducir la violencia contra las mujeres"]
[{"$nulls":11},"O27E1 Crear espacios físicos y virtuales, y otros mecanismos de diálogo y reflexión para generar soluciones innovadoras a problemas públicos y sociales"]
[{"$nulls":11},"O27E2 Desarrollar alianzas y redes entre empresas, gobierno, grupos sociales y universidades para impulsar la innovación, el emprendurismo y la creatividad que genere la creación de valor público y económico"]
[{"$nulls":11},"O27E3 Incrementar las actividades de investigación y desarrollo, principalmente en el sector agropecuario, la industria alimentaria, la industria creativa y la biotecnológica"]
[{"$nulls":11},"O27E4 Promover la innovación en el sector gubernamental en todos los órdenes y niveles de gobierno"]

{"sheet":"Base","index":2,"n_rows":1,"n_cols":60,"rows_kept":1,"hidden":true}
["ID","Ente auditable","Denominación del Programa","Categoría programática","Unidad Responsable","Finalidad","Función","Sub-función","Alineación con objetivos superiores del PND","Alineación con objetivos secundarios del PND","Alineación con objetivos superiores del PED","Alineación con objetivos secundarios del PED","Alineación con objetivos superiores del PMD","Alineación con objetivos secundarios del PMD","Nivel MIR","Código del nivel MIR","Resumen Narrativo (objetivos)","Nombre del indicador","Definición del indicador","Dimensión del indicador","Tipo de indicador","Método de Cálculo del indicador","Valor programado 1 (Numerador)","Valor programado 2 (Denominador)","Frecuencia de Medición del indicador","Unidad de Medida del indicador","Metas del indicador","Medios de Verificación del indicador","Supuestos del indicador","Capítulo 1000","Capítulo 2000","Capítulo 3000","Capítulo 4000","Capítulo 5000","Capítulo 6000","Capítulo 7000","Capítulo 8000","Capítulo 9000","Avance 1er Semestre del Valor programado 1 (Numerador)","Avance 1er Semestre del Valor programado 2 (Denominador)","Avance Anual del Valor programado 1 (Numerador)","Avance Anual del Valor programado 2 (Denominador)","Avance 1er Semestre del Capítulo 1000","Avance 1er Semestre del Capítulo 2000","Avance 1er Semestre del Capítulo 3000","Avance 1er Semestre del Capítulo 4000","Avance 1er Semestre del Capítulo 5000","Avance 1er Semestre del Capítulo 6000","Avance 1er Semestre del Capítulo 7000","Avance 1er Semestre del Capítulo 8000","Avance 1er Semestre del Capítulo 9000","Avance Anual del Capítulo 1000","Avance Anual del Capítulo 2000","Avance Anual del Capítulo 3000","Avance Anual del Capítulo 4000","Avance Anual del Capítulo 5000","Avance Anual del Capítulo 6000","Avance Anual del Capítulo 7000","Avance Anual del Capítulo 8000","Avance Anual del Capítulo 9000"]

{"sheet":"SUSTENTO INDICADOR  2020","index":3,"n_rows":92,"n_cols":20,"rows_kept":92,"merged":[[1,1,1,6],[1,7,1,15],[3,1,3,6],[3,7,3,15],[4,5,4,15],[6,2,7,3],[6,5,7,15],[9,2,10,3],[9,5,10,15],[14,2,14,9],[14,11,14,15],[15,11,17,15],[21,2,21,3],[24,2,24,4],[24,5,24,6],[24,7,24,8],[24,9,24,11],[24,12,24,13],[24,15,24,16],[24,18,24,19],[25,1,29,1],[25,2,28,4],[25,5,28,6],[25,7,28,8],[25,9,28,11],[25,12,26,13],[25,14,26,14],[25,15,28,16],[25,17,26,17],[27,12,28,13],[27,14,28,14],[27,17,28,17],[30,1,33,1],[30,2,33,4],[30,5,33,6],[30,7,33,8],[30,9,33,11],[30,12,31,13],[30,14,31,14],[30,15,33,16],[30,17,31,17],[32,12,33,13],[32,14,33,14],[32,17,33,17],[34,2,34,3],[34,4,34,17],[34,18,51,19],[35,1,36,1],[35,2,36,3],[37,1,38,1],[37,2,38,3],[39,2,39,3],[39,4,39,17],[40,1,41,1],[40,2,41,3],[42,1,43,1],[42,2,43,3],[44,2,44,3],[44,4,44,17],[45,1,46,1],[45,2,46,3],[47,2,47,3],[47,4,47,17],[48,1,49,1],[48,2,49,3],[50,1,51,1],[50,2,51,3],[52,1,55,1],[52,2,55,4],[52,5,55,6],[52,7,55,8],[52,9,55,11],[52,12,53,13],[52,14,53,14],[52,15,55,16],[52,17,53,17],[54,12,55,13],[54,14,55,14],[54,17,55,17],[56,1,57,1],[56,2,57,3],[56,18,66,19],[58,2,58,3],[58,4,58,17],[59,1,60,1],[59,2,60,3],[61,2,61,3],[61,4,61,17],[62,1,63,1],[62,2,63,3],[64,2,64,3],[64,4,64,17],[65,1,66,1],[65,2,66,3],[67,1,70,1],[67,2,70,4],[67,5,70,6],[67,7,70,8],[67,9,70,11],[67,12,68,13],[67,14,68,14],[67,15,70,16],[67,17,68,17],[69,12,70,13],[69,14,70,14],[69,17,70,17],[71,2,71,3],[71,4,71,17],[71,18,87,19],[72,1,73,1],[72,2,73,3],[74,2,74,3],[74,4,74,17],[75,1,76,1],[75,2,76,3],[77,2,77,3],[77,4,77,17],[78,1,79,1],[78,2,79,3],[80,2,80,3],[80,4,80,17],[81,1,82,1],[81,2,82,3],[83,2,83,3],[83,4,83,17],[84,1,85,1],[84,2,85,3],[86,1,87,1],[86,2,87,3],[90,2,90,6],[91,4,91,6]]}
[]
[null,"Municipio de Ixtlahuacán de los Membrillos, Jal.",{"$nulls":5},"INDICADORES  DE GESTIÓN    (Objetivos y resultados)"]
[]
[null,"Municipio de Ixtlahuacán de los Membrillos, Jal.",{"$nulls":5},"INDICADORES  DE EVALUACION DEL DESEMPEÑO"]
[null,null,"DIRECCION MUNICIPAL:",null,null,"INFORMATICA"]
[]
[null,null,"NOMBRE DEL PROGRAMA PRESUPUESTARIO:",null,null,"DESARROLLO ECONOMICO "]
[]
[]
[null,null,"NOMBRE DEL INDICADOR ESTRATEGICO:",null,null,"índice de desarrollo municipal del aspecto económico (IDM-E)"]
[]
[]
[{"$nulls":5},"AÑO: ",2018,2019,2020,2021]
[]
[null,null,"AVANCE SEMESTRAL",{"$nulls":8},"Criterios para determinar avance de porcentaje de metas"]
[null,null,"Proyectos a desarrollar",null,"1ro.","2do.","3ro.","4to.","5to.","6to.",null,"En la MIR se establecen los proyectos que ha programado la dirección para cumplir con el indicador estrategico  durante la administración, con el cumplimiento al 100% de ellos y sus 8 variables dara cumplimiento a las meta individuales y de la dirección que constituyen el indicador estrategico o de evaluacion del exito ejercico el presupuesto asignado a la direccion y a cada proyecto y sus actividades, los informes bimensuales seran la suma de los valores relativos de cada bimestre que se va acumulando, hasta llegar al último bimestre de trabajo para su cumplimiento."]
[null,null,"Calidad Informática Mejorada","INDICE de calidad informática (V1-CI)",0.1429,0.3467,0.6535]
[null,"1.1","Levantamiento del estado actual de la red y dados los resultados adquirir nuevo equipo que atienda las necesidades.","PORCENTAJE de actualización de la red, adquisición de nuevos equipos y colocacion de puntos de acceso a internet (P124-ARANE)",{"v":0.28,"d":"28%"},{"v":0.35,"d":"35%"},{"v":0.93,"d":"93%"}]
[null,"1.2","Elaboración de un reglamento que se adecue a las nuevas necesidades de este ayuntamiento","PORCENTAJE de elaboración del reglamento de informática (P125-ERI)",{"v":0.14,"d":"14%"},{"v":0.3,"d":"30%"},{"v":0.36,"d":"36%"}]
[null,"1.3","Programa de mantenimiento, atención y solución de problemas que se presentes en las áreas de este ayuntamiento.","PORCENTAJE de avance del programa de mantenimiento y atención a sistemas computacionales (P126-APMASC)",{"v":0.2,"d":"20%"},{"v":0.38,"d":"38%"},{"v":0.47,"d":"47%"}]
[]
[null,null,"VALOR BIMESTRAL DEL INDICADOR",null,{"$f":"(E20+E19+E18)/3","v":{"v":0.2066666666666667,"d":"20.67%"}},{"$f":"(F20+F19+F18)/3","v":{"v":0.34333333333333327,"d":"34.33%"}},{"$f":"(G20+G19+G18)/3","v":{"v":0.5866666666666667,"d":"58.67%"}}]
[]
[]
[null,null,"Proyectos a Desarrollar",null,null,"Nombre del indicador",null,"Definición",null,"Método de cálculo",null,null,"Valor programado 1 (Numerador)",null,"Valor programado 2 (Denominador)","Frecuencia de medición",null,"Meta","Caracteristicas del Indicador"]
[null,"Propósito","Calidad Informática Mejorada",null,null,"INDICE de calidad informática (V1-CI)",null,"Mide el nivel de atencion y solucion de los problemas a los usuarios de los equipos informaticos de la administración municipal",null,"(valor resultante de sumar los valores individuales  de  los cosientes entre sus denominadores por su ponderacion asignada, que miden las  variables de: acttualizacion de red, reglamento y mantenimiento con su correspondientes ponderaciones de .4, .2,  y .4)",null,null,{"$f":"0.4*(M31)+0.2*(M53)+0.4*(M68)","v":26.400000000000002},null,{"$f":"0.4*(O31)+0.2*(O53)+0.4*(O68)","v":40.400000000000006},"Bimestral",null,{"$f":"M26/O26","v":{"v":0.6534653465346534,"d":"0.6535"}},"Eficacia","Dimensión"]
[{"$nulls":18},"Estratégico","Tipo"]
[{"$nulls":12},{"$f":"(M33+M55+M70)/3","v":{"v":2.953333333333333,"d":"2.95"}},null,{"$f":"(O33+O55+O70)/3","v":{"v":5.666666666666667,"d":"5.67"}},null,null,{"$f":"M28/O28","v":{"v":0.5211764705882352,"d":"52.12%"}},"Bimestral","Frecuencia de medición"]
[{"$nulls":18},"Índice","Unidad de medida"]
[null,null,"Calendario de ejecución",null,null,"Enero","Feb","Mzo","Abril","Mayo","Jun","Jul","Agosto","Sept","Oct","Nov","Dic"]
[null,"Componente 1","Levantamiento del estado actual de la red y dados los resultados adquirir nuevo equipo que atienda las necesidades.",null,null,"PORCENTAJE de actualización de la red, adquisición de nuevos equipos y colocacion de puntos de acceso a internet (P124-ARANE)",null,"Mide el avance en la actualización de los equipos, licencias y redes, que permitan la instalacion de sitios de gobierno con servicio de acceso a internet",null,"(Cantidad de redes de  computacion  (3), cantidad de computadoras a ser adquiridas nuevas (8) mantenimiento o colocacion de puntos nuevos de acceso a internet  (30) /total de redes, computadoras y puntos de acceso a internet (44))*100",null,null,41,null,44,"Mensual",null,{"$f":"M31/O31","v":{"v":0.9318181818181818,"d":"93.18%"}},"Eficacia","Dimensión"]
[{"$nulls":18},"Gestión","Tipo"]
[{"$nulls":12},{"$f":"R37+R39+R42+R44+R47+R50+R52","v":{"v":3.5,"d":"3.50"}},null,{"$f":"R36+R38+R41+R43+R46+R49+R51","v":7},null,null,{"$f":"M33/O33","v":{"v":0.5,"d":"50.00%"}},"Bimestral","Frecuencia de medición"]
[{"$nulls":18},"Porcentaje","Unidad de medida"]
[null,"Reglamento de Gobierno y de la Administracion Publica (Art 165 fracc III)","Coordinar la implantación y operación de la red ejecutivas de la administración pública municipal, determinado las políticas y criterios para el proceso de la información de las distintas dependencias municipales y estableciendo los sistemas de información adecuados."]
[null,"Actividad 1.1","Verificar oficinas (15) el estado del cableado correspondiente a 200 metros de cable CAT5, asi mismo  realizar cambio de conexiones RJ45 equivalente a 44 puertos y  su funcionalidad. Dentro del mismo analisis se reporta humedad del ambiente que no involucre peligro alguno dentro de la misma red como meta de 44 subredes. En Enero-Julio 2020 se han verificado 7 oficinas, 41 computadoras e instalado 60 metros de cable y 5 conectores RJ45",null,"P",12,0,12,0,12,14,10,10,10,10,10,0,{"$f":"SUM($F36:$Q36)/100","v":1}]
[{"$nulls":4},"E",12,0,12,0,12,14,0,0,0,0,0,0,{"$f":"SUM($F37:$Q37)/100","v":0.5}]
[null,"Actividad 1.2","Revisar el estado router o switch, del total de 5 switch instalados en oficinas principales en el primer piso 3 y en el segundo piso 2, se verifica con el  proveedor para analizar la vida util de los mismos basados en las horas de uso. Siendo estos en 33 maquinas. En Enero-Julio 2020 se han verificado 2 switcher y se verifico que el estado de vida útil es de 2 años",null,"P",12,0,12,0,12,14,10,10,10,10,10,0,1]
[{"$nulls":4},"E",12,0,12,0,12,14,0,0,0,0,0,0,0.5]
[null,"Reglamento de Gobierno y de la Administracion Publica (Art 165 fracc VI)","Ser la responsable de la implantación, configuración y administración de la red municipal."]
[null,"Actividad 1.3","Revisar el estado actual del concentrador,  su capacidad utilizada,  temperatura  permitida,  limpieza de todos los conectores usando alcohol y aire comprimido, para alargar la vida del dispositivo a dos años maximo, siendo 2 concentradores los instalados actualmente en Enero Julio 2020.",null,"P",12,0,12,0,12,14,10,10,10,10,10,0,1]
[{"$nulls":4},"E",12,0,12,0,12,14,0,0,0,0,0,0,0.5]
[null,"Actividad 1.4","Politica de acceso a red interna del H. Ayuntamiento, se publicara con 20 lineamientos y politicas para acceso a la red e internet del Ayuntamiento, mismo que involucra sitios de confianza, herramientas administrativas y laborales, un filtro de paginas peligrosas. Se definio el archivo de politicas en Enero-Julio con espera a su aprobación por Secretaria General.",null,"P",12,0,12,0,12,14,10,10,10,10,10,0,{"$f":"SUM($F43:$Q43)/100","v":1}]
[{"$nulls":4},"E",12,0,12,0,12,14,0,0,0,0,0,0,0.5]
[null,"Reglamento de Gobierno y de la Administracion Publica (Art 165 fracc II)"," Coordinar el diseño, desarrollo, implementación, operación, mantenimiento y optimización de\nlos sistemas de procesamiento electrónico de datos, así como establecer los criterios de seguridad\ny soporte de la información para la administración pública municipal.\n"]
[null,"Actividad 1.5","Revisión de politicas de acceso a sitios web no oficiales o no catalogados como herramienta laboral, generación y actualización de filtros especiales capaz de bloquear 200 paginas por hora, las cuales en base a criterios de seguridad son catalogadas como peligrosas sin certificado de seguridad y sin rubro alguno que ayude al personal a desempeñar correctamente su trabajo. En Enero-Julio 2020 se han bloqueado 10 accesos maliciosos asi como diagnosticado 2 equipos con software remoto.",null,"P",12,0,12,0,12,14,10,10,10,10,10,0,1]
[{"$nulls":4},"E",12,0,12,0,12,14,0,0,0,0,0,0,0.5]
[null,"Reglamento de Gobierno y de la Administracion Publica (Art 165 fracc XII)","Autorizar la introducción y salida de equipos de cómputo ajenos a las instalaciones públicas\nmunicipales.\n"]
[null,"Actividad 1.6","Inventariado de los componentes asociados a la red interna, asi mismo levantamiento de equipo dañado por uso cotidiano y que requiere cambio. En Enero-Julio 2020 se tienen inventariado 43 computadoras, 3 switch y un balancedor especializado con carta en espera de liberacion por parte de tesoreria.",null,"P",12,0,12,0,12,14,10,10,10,10,10,0,1]
[{"$nulls":4},"E",12,0,12,0,12,14,0,0,0,0,0,0,0.5]
[null,"Actividad 1.7","Medición del estado actual de velocidad de transferencia de información en internet basado en la calidad del servicio del proveedor proporcionado, en bajada y subida. En Enero-Julio 2020 la velocidad proporcionada por megacable esta entre 50 y 60 mb en descarga y 100 mb en subida",null,"P",12,0,12,0,12,14,10,10,10,10,10,0,1]
[{"$nulls":4},"E",12,0,12,0,12,14,0,0,0,0,0,0,0.5]
[null,"Componente 2","Elaboración de un reglamento que se adecue a las nuevas necesidades de este ayuntamiento.",null,null,"PORCENTAJE de elaboración del reglamento de informática (P125-ERI)",null,"Mide el avance en la elaboración el reglamento de informatica y sistemas",null,"(Cantidad de articulos (10) desarrollados para el reglamento de resguardo, uso y manipulacion de equipos de computacion de la administracion municipal asignadas a las direcciones establecidas / Total de direcciones 28 con equipos de computacion de la administracion municipal asignadas y con aportaciones y conocimiento)*100",null,null,10,null,28,"Mensual",null,{"$f":"M53/O53","v":{"v":0.35714285714285715,"d":"36%"}},"Eficacia","Dimensión"]
[{"$nulls":18},"Gestión","Tipo"]
[{"$nulls":12},{"$f":"R58+R61+R64+R67","v":2},null,{"$f":"R57+R60+R63+R66","v":4},null,null,{"$f":"M55/O55","v":{"v":0.5,"d":"50%"}},"Bimestral","Frecuencia de medición"]
[{"$nulls":18},"Índice","Unidad de medida"]
[null,"Actividad 2.1","Adecuar las politicas sobre las necesidades de cada area y accesos de internet como herramienta de trabajo, siendo un total de 23 oficinas primordiales y 40 computadoras, autorizando accesos a internet, y balanceando las cargas  asi mismo filtrado de rangos IP como accesos seguros para impresoras y multifuncionale de todo el edificio. En Enero-Julio 2020 se han verificado 5 oficinas y dado de baja del sistema 10 computadoras por malfuncionalidad.",null,"P",12,0,12,0,12,14,10,10,10,10,10,0,{"$f":"SUM($F57:$Q57)/100","v":1}]
[{"$nulls":4},"E",12,0,12,0,12,14,0,0,0,0,0,0,{"$f":"SUM($F58:$Q58)/100","v":0.5}]
[null,"Reglamento de Gobierno y de la Administracion Publica (Art 165 fracc I)","Proponer, coordinar y ejecutar las políticas y criterios en materia de sistemas."]
[null,"Actividad 2.2","Manual operativo de uso de equipo electronico como computadoras e impresoras. Para envios de informacion por correo y almacenamiento en la nube, 1 para uso de formulas basicas en hojas de calculo, y el ultimo para acceso y configuracion de su red de trabajo para acceder al internet. En Enero-Julio 2020 se tiene generado un manual operativo en vista de aprobacion por parte de Oficialia Mayor",null,"P",12,0,12,0,12,14,10,10,10,10,10,0,1]
[{"$nulls":4},"E",12,0,12,0,12,14,0,0,0,0,0,0,0.5]
[null,"Reglamento de Gobierno y de la Administracion Publica (Art 165 fracc V)","Ser la responsable de coordinar, organizar y planear el desarrollo o adquisición de los sistemas informáticos de la Administración Pública Municipal.\n"]
[null,"Actividad 2.3","Generar sistema y procedimiento para reportar fallas o averias en equipo o red. Se realizo un sistema en la nube para que el personal puede reportar fallas en el uso de la red, o alguna tecnologia que es indispensable en su area de desarrollo. En Enero-Julio 2020 se tiene instalado el sistema de levantamiento de fallas en un 80% se estan haciendo pruebas de funcionalidad.",null,"P",12,0,12,0,12,14,10,10,10,10,10,0,1]
[{"$nulls":4},"E",12,0,12,0,12,14,0,0,0,0,0,0,0.5]
[null,"Reglamento de Gobierno y de la Administracion Publica (Art 165 fracc IV)"," Elaborar y difundir el Plan operativo anual de informática, el cual será documento rector en el manejo de la información propiedad del Municipio."]
[null,"Actividad 2.4","Generar un sistema de monitoreo constante de uso de los manuales anteriores. Para asegurarse que estas tienen acceso a informacion de manuales y ayudas que les permitan desempeñarse usando equipo de computo y red sin contratiempos.  En Enero-Julio 2020 se tiene instalado el sistema de levantamiento de fallas en un 80% se estan haciendo pruebas de funcionalidad.",null,"P",12,0,12,0,12,14,10,10,10,10,10,0,1]
[{"$nulls":4},"E",12,0,12,0,12,14,0,0,0,0,0,0,{"$f":"SUM($F67:$Q67)/100","v":0.5}]
[null,"Componente 3","Programa de mantenimiento, atención y solución de problemas que se presentes en las áreas de este ayuntamiento.",null,null,"PORCENTAJE de avance del programa de mantenimiento y atención a sistemas computacionales (P126-APMASC)",null,"Mide los avances en el cumplimiento del programa de mantenimiento y atención",null,"(Cantidad de computadoras (20) incluidas en el programa de mantenimiento y actividades relacionadas a las tecnologías de la informacion (20) que atiende el personal asignado a esta dirección administrativa del ayuntamiento  /total de computadoras y actividades por atender  en la dirección de Informática (43))*100",null,null,20,null,43,"Mensual",null,{"$f":"M68/O68","v":{"v":0.46511627906976744,"d":"47%"}},"Eficacia","Dimensión"]
[{"$nulls":18},"Gestión","Tipo"]
[{"$nulls":12},{"$f":"R74+R77+R80+R83+R86+R88","v":3.3600000000000003},null,{"$f":"R73+R76+R79+R82+R85+R87","v":6},null,null,{"$f":"M70/O70","v":{"v":0.56,"d":"56%"}},"Bimestral","Frecuencia de medición"]
[{"$nulls":18},"Porcentaje","Unidad de medida"]
[null,"Reglamento de Gobierno y de la Administracion Publica (Art 165 fracc VII)","Mantener la compatibilidad de los Programas y equipos con que cuenta la administración Pública Municipal.\n"]
[null,"Actividad 3.1","Mantenimiento a todas las computadoras, de las 43 maquinas resgistradas, verificar el estado, realizar pruebas de temperatura y humedad que garantizen el correcto funcionamiento y no ocasionen accidentes.  En Enero-Julio 2020 se han verificado 20 maaquinas con problemas de procesamiento lento.",null,"P",8,16,8,8,8,8,8,10,10,10,6,0,{"$f":"SUM($F73:$Q73)/100","v":1}]
[{"$nulls":4},"E",8,16,8,8,8,8,0,0,0,0,0,0,{"$f":"SUM($F74:$Q74)/100","v":0.56}]
[null,"Reglamento de Gobierno y de la Administracion Publica (Art 165 fracc IX)"," Previo estudio de necesidades reales, asignar o requerir a cada dependencia los equipos de cómputo y periféricos que necesiten para desarrollar sus funciones.\n"]
[null,"Actividad 3.2","Mantenimiento a las impresoras verificación de niveles de tinta de todas las impresoras , generar reporte de falta de insumos como tinta, cartuchos y hojas, malfuncionalidad, dando su baja correspondiente. Siendo 10 impresoras las registradas en el inventario actual.  En Enero-Julio 2020 se han cambiado dos cartuchos de impresion laser.",null,"P",8,16,8,8,8,8,8,10,10,10,6,0,{"$f":"SUM($F76:$Q76)/100","v":1}]
[{"$nulls":4},"E",8,16,8,8,8,8,0,0,0,0,0,0,0.56]
[null,"Reglamento de Gobierno y de la Administracion Publica (Art 165 fracc X)","Dar mantenimiento preventivo y correctivo a los equipos propiedad del patrimonio municipal."]
[null,"Actividad 3.3","Instalacion de actualizacion de software, de las 43 maquinas computadoras registradas, en base a las necesidades que el proveedor indica,  verificar que estas herramientas fueran compatibles con versiones posteriores para evitar daño y borrado de datos persistentes en todas las oficinas, asi como paqueteria de oficina. Se han instalado 10 actualizaciones en maquinas con sistema operativo windows 10",null,"P",8,16,8,8,8,8,8,10,10,10,6,0,{"$f":"SUM($F79:$Q79)/100","v":1}]
[{"$nulls":4},"E",8,16,8,8,8,8,0,0,0,0,0,0,0.56]
[null,"Reglamento de Gobierno y de la Administracion Publica (Art 165 fracc XIV)"," Coordinarse con las autoridades Federales Estatales y Municipales en Materia informática.\n"]
[null,"Actividad 3.4","Verificaciones de compatibilidad entre herramientas obsoletas y actualizadas, por las 43 maquinas las superviciones deben de llevar minimo 90% de compatibilidad en las herramientas utilizadas en 20 oficinas. Misma verificacion se coordina junto con varios proveedores de software estrategico que implementa el municipio en funcion.  En Enero-Julio 2020 se tuvo un acercamiento con el enlace del software contpaq para checar las ultimas actualizaciones del software.",null,"P",8,16,8,8,8,8,8,10,10,10,6,0,{"$f":"SUM($F82:$Q82)/100","v":1}]
[{"$nulls":4},"E",8,16,8,8,8,8,0,0,0,0,0,0,0.56]
[null,"Reglamento de Gobierno y de la Administracion Publica (Art 165 fracc XI)","Emitir dictamen especializado ante el Comité de Adquisiciones para la compra, renta, ampliación, instalación de sistemas de información, así como de los demás servicios que se requieran en la materia.\n\n"]
[null,"Actividad 3.5","Mantenimiento preventivo de actualizacion de hardware,  implementacion de pruebas automatizadas que indican el estrés de los componentes electronicos del equipo de computo que involucran uso de discos de almacenamiento, pantallas, teclados y ratones. En las 43 maquinas registradas. Se han cambiado 3 ratones y 2 teclados en Enero-Julio 2020 por averia común en uso.",null,"P",8,16,8,8,8,8,8,10,10,10,6,0,{"$f":"SUM($F85:$Q85)/100","v":1}]
[{"$nulls":4},"E",8,16,8,8,8,8,0,0,0,0,0,0,0.56]
[null,"Actividad 3.6","Generar diagnosticos de hardware y software como medida preventiva de errores. Identificar posibles fallas generalizadas, que desencadenen un reporte para la adquisición de nuevo equipo. Los diagnosticos incluyen fecha, punto critico y punto medio basado en un puntaje de 100.  En Enero-Julio 2020 se detecto la necesidad de cambiar las 2 computadoras esenciales de Tesoreria, por problemas de seguridad,  a un Sistema Unix, siendo esta la recomendacion MAC Book Mini Mid 2018 16GB RAM SSD 120",null,"P",8,16,8,8,8,8,8,10,10,10,6,0,{"$f":"SUM($F87:$Q87)/100","v":1}]
[{"$nulls":4},"E",8,16,8,8,8,8,0,0,0,0,0,0,0.56]
[]
[null,null,"P : Programado  /  E: Ejecutado"]
[null,null,"SEMAFORO DE CUMPLIMIENTO DE LOS PROYECTOS  y DE LA DIRECCION"]
[null,null,"Avance en tiempo","Avance  relativo","Avances limitado"]

{"sheet":"Hoja5","index":4,"n_rows":0,"n_cols":0,"rows_kept":0}